bitfinex-derivatives/quotes_ETHF0:USTF0_20250330
["timestamp","ask_amount","ask_price","bid_price","bid_amount"]
[1743323018487,1.4863493,1841.1,1841.0,2.55127]
[1743323018798,0.7063,1841.4,1841.3,1.08649]
[1743323019395,1.79273,1841.4,1841.2,7.388]
[1743323019711,1.79273,1841.4,1841.2,8.47451]
[1743323019895,1.08649,1841.3,1841.2,6.6388]
[1743323020095,3.19239,1841.3,1841.2,6.6388]
[1743323026100,3.19239,1841.3,1841.2,3.431]
[1743323028303,1.3828,1841.3,1841.2,4.51755]
[1743323028503,1.3828,1841.3,1841.2,6.60605]
[1743323029503,1.3828,1841.3,1841.2,9.81385]
[1743323040221,1.08655,1841.2,1841.1,0.0081493]
[1743323040409,2.50645,1841.2,1841.1,0.0081493]
[1743323041113,3.97145,1841.2,1841.1,0.0081493]
[1743323059132,3.27585,1841.2,1841.1,0.0081493]
[1743323059331,2.55155,1841.2,1841.1,0.0081493]
[1743323059533,2.55155,1841.2,1841.1,2.5720593]
[1743323059732,1.0865,1841.3,1841.2,1.08655]
[1743323059933,2.47377,1841.4,1841.2,2.56385]
[1743323060132,2.47377,1841.4,1841.1,3.4371493]
[1743323060133,1.3873,1841.4,1841.3,3.94959]
[1743323060437,1.0945393,1841.5,1841.4,1.08643]
[1743323060638,2.4818393,1841.5,1841.4,2.56373]
[1743323061931,1.3954493,1841.5,1841.4,2.56373]
[1743323062137,0.0081493,1841.5,1841.4,5.99373]
[1743323063530,3.2078,1841.6,1841.4,5.99373]
[1743323063531,3.2078,1841.6,1841.5,1.08637]
[1743323063729,3.2078,1841.6,1841.5,2.47667]
[1743323064629,5.72263,1841.8,1841.6,1.08627]
[1743323064830,5.72263,1841.8,1841.6,3.17027]
[1743323065030,4.6364,1841.8,1841.7,4.51825]
[1743323065230,4.6364,1841.8,1841.7,4.8223]
[1743323065231,3.2078,1841.8,1841.7,4.8223]
[1743323065731,4.29399,1841.8,1841.7,4.8223]
[1743323065931,5.73629,1841.8,1841.7,4.8223]
[1743323066739,4.6501,1841.8,1841.7,6.65335]
[1743323067134,4.6501,1841.8,1841.7,5.5671]
[1743323067636,4.6501,1841.8,1841.7,6.65335]
[1743323068441,5.73629,1841.8,1841.7,6.65335]
[1743323068746,2.52849,1841.8,1841.7,6.65335]
[1743323068940,3.2078,1842.0,1841.9,1.08613]
[1743323069134,1.4055,1842.0,1841.9,1.08613]
[1743323069634,1.4055,1842.0,1841.9,3.26053]
[1743323070939,1.08602,1842.1,1841.9,3.26053]
[1743323071140,1.08602,1842.1,1842.0,1.4785]
[1743323071341,1.08602,1842.1,1842.0,2.1913]
[1743323072844,1.08602,1842.1,1842.0,0.7128]
[1743323078539,2.54012,1842.1,1842.0,0.7128]
[1743323080051,2.54012,1842.1,1842.0,1.79888]
[1743323080250,2.54012,1842.1,1842.0,2.1238]
[1743323081950,1.4541,1842.1,1842.0,6.63688]
[1743323082154,4.29374,1842.3,1842.1,1.08598]
[1743323082355,5.77474,1842.3,1842.2,2.2168]
[1743323082549,4.29374,1842.3,1842.2,2.2168]
[1743323083049,4.29374,1842.3,1842.2,0.7417]
[1743323083354,1.08596,1842.2,1842.1,1.4832493]
[1743323084453,1.08596,1842.2,1842.1,0.0081493]
[1743323085252,1.08596,1842.2,1842.1,1.3967493]
[1743323087643,1.08596,1842.2,1842.1,0.0081493]
[1743323092958,4.29376,1842.2,1842.1,0.0081493]
[1743323096155,1.08596,1842.2,1842.1,0.0081493]
[1743323096651,4.29376,1842.2,1842.1,0.0081493]
[1743323098659,1.08596,1842.2,1842.1,0.0081493]
[1743323098863,4.29376,1842.2,1842.1,0.0081493]
[1743323102963,1.08596,1842.2,1842.1,0.0081493]
[1743323103168,4.29376,1842.2,1842.1,0.0081493]
[1743323103365,4.29376,1842.2,1842.1,0.7141493]
[1743323104363,4.29376,1842.2,1842.1,0.0081493]
[1743323106774,1.08625,1841.7,1841.6,0.7007]
[1743323107472,1.08622,1841.8,1841.6,1.78701]
[1743323107670,2.58382,1841.8,1841.7,1.4471]
[1743323107968,1.4976,1841.8,1841.7,2.53335]
[1743323108166,1.4976,1841.8,1841.7,5.96135]
[1743323108470,0.0081493,1841.9,1841.8,1.08619]
[1743323108670,0.0081493,1841.9,1841.8,3.29609]
[1743323108869,1.0942793,1841.9,1841.8,2.2099]
[1743323110375,0.0081493,1841.9,1841.8,6.50389]
[1743323110762,1.0942793,1841.9,1841.8,5.4177]
[1743323112561,0.0081493,1841.9,1841.8,6.50389]
[1743323112762,1.08606,1842.1,1841.9,1.08613]
[1743323112969,1.08606,1842.1,1842.0,4.8529]
[1743323114168,2.57026,1842.1,1842.0,4.8529]
[1743323115472,2.57026,1842.1,1842.0,3.428]
[1743323115676,1.08613,1841.9,1841.8,2.0953]
[1743323115974,1.08613,1841.9,1841.8,2.806]
[1743323116176,1.08613,1841.9,1841.8,6.235]
[1743323116372,1.08613,1841.9,1841.8,7.32119]
[1743323116774,1.4842,1842.0,1841.9,1.08613]
[1743323117078,4.29379,1842.2,1842.0,1.08608]
[1743323117380,5.66445053,1842.2,1842.1,2.1565]
[1743323122579,2.48979,1842.2,1842.1,0.6923]
[1743323123677,2.48979,1842.2,1842.1,1.404]
[1743323128380,1.08608,1842.0,1841.9,1.4214]
[1743323128675,1.08608,1842.0,1841.9,1.38826053]
[1743323129883,1.08608,1842.0,1841.9,0.68926053]
[1743323130077,1.78698,1842.0,1841.9,0.68926053]
[1743323130779,1.78698,1842.0,1841.9,2.10456053]
[1743323135687,1.78698,1842.0,1841.9,0.68926053]
[1743323139783,1.08613,1841.9,1841.8,3.427]
[1743323139982,2.46113,1841.9,1841.8,3.427]
[1743323140789,2.46113,1841.9,1841.8,4.9309]
[1743323162811,2.46113,1841.9,1841.8,6.01709]
[1743323163410,2.46113,1841.9,1841.8,4.9309]
[1743323168511,3.2078,1842.2,1841.8,4.9309]
[1743323168707,24.43794587,1842.3,1842.1,1.08602]
[1743323168919,25.83164587,1842.3,1842.2,2.8447]
[1743323170822,2.47961,1842.3,1842.2,2.8447]
[1743323176813,1.3937,1842.3,1842.2,3.93066]
[1743323177626,2.4796,1842.3,1842.2,2.8447]
[1743323179026,3.2323,1842.3,1842.2,1.3868]
[1743323181425,2.4796,1842.3,1842.2,2.7994]
[1743323188022,1.08596,1842.2,1842.1,3.427]
[1743323188227,2.50586,1842.2,1842.1,3.426]
[1743323188431,3.24916,1842.2,1842.1,3.426]
[1743323189523,3.24916,1842.2,1842.1,4.788]
[1743323190131,3.24916,1842.2,1842.1,5.5345]
[1743323196732,3.24916,1842.2,1842.0,3.2078]
[1743323196733,1.08602,1842.1,1842.0,3.2078]
[1743323196927,3.31072,1842.1,1842.0,3.2078]
[1743323199938,2.58142,1842.1,1842.0,3.2078]
[1743323200235,2.58142,1842.1,1842.0,5.2909]
[1743323206445,2.58142,1842.1,1842.0,2.0831]
[1743323208339,2.58142,1842.1,1842.0,0.712]
[1743323211136,2.58142,1842.1,1842.0,2.1008]
[1743323212643,2.58142,1842.1,1842.0,0.712]
[1743323214543,1.08608,1842.0,1841.9,7.3122]
[1743323214848,2.51958,1842.0,1841.9,7.3122]
[1743323216953,2.51958,1842.0,1841.9,8.786]
[1743323221157,2.51958,1842.0,1841.9,9.87213]
[1743323222051,1.4335,1842.0,1841.9,9.87213]
[1743323222257,2.54356,1842.1,1841.9,9.87209]
[1743323222450,2.54356,1842.1,1842.0,1.4898]
[1743323222747,2.54356,1842.1,1842.0,2.1878]
[1743323224352,2.54356,1842.1,1842.0,3.27388]
[1743323224554,2.54356,1842.1,1842.0,2.1878]
[1743323231460,1.4575,1842.1,1842.0,3.27388]
[1743323238564,1.4575,1842.1,1842.0,6.48168]
[1743323244660,2.54352,1842.1,1842.0,5.3956]
[1743323245257,1.4575,1842.1,1842.0,6.48168]
[1743323245463,2.54352,1842.1,1842.0,6.48168]
[1743323245772,2.54352,1842.1,1842.0,3.2078]
[1743323247368,1.08608,1842.0,1841.9,3.426]
[1743323247571,3.24698,1842.0,1841.9,7.71993]
[1743323248668,3.24698,1842.0,1841.9,6.6338]
[1743323249967,3.24698,1842.0,1841.9,7.71993]
[1743323250571,2.1609,1842.0,1841.9,9.13523]
[1743323254074,2.1609,1842.0,1841.9,5.92743]
[1743323254269,2.1609,1842.0,1841.9,9.13523]
[1743323255371,2.1609,1842.0,1841.9,5.92743]
[1743323255569,3.24698,1842.0,1841.9,8.0491]
[1743323256470,2.1609,1842.0,1841.9,9.13523]
[1743323258877,3.24698,1842.0,1841.9,9.13523]
[1743323259073,2.1609,1842.0,1841.6,1.08629]
[1743323259276,1.08622,1841.8,1841.6,4.51229]
[1743323259579,3.25797,1841.9,1841.7,1.08625]
[1743323259784,1.4733,1841.8,1841.7,5.03405]
[1743323260272,1.4733,1841.8,1841.7,6.42675]
[1743323262875,1.4733,1841.8,1841.7,3.21895]
[1743323263080,1.4733,1841.8,1841.7,6.42675]
[1743323268387,1.4733,1841.8,1841.7,3.21895]
[1743323268590,1.4733,1841.8,1841.7,6.42675]
[1743323270092,1.4733,1841.8,1841.7,3.21895]
[1743323270284,1.4733,1841.8,1841.7,6.42675]
[1743323274692,3.2078,1842.2,1841.9,1.08612]
[1743323274892,2.51957,1842.1,1842.0,1.4495]
[1743323275100,2.51957,1842.1,1842.0,2.8955]
[1743323276689,2.51957,1842.1,1842.0,3.98158]
[1743323277492,1.76992,1842.3,1842.1,1.08598]
[1743323277695,1.08592,1842.3,1842.2,1.5046]
[1743323277892,1.08592,1842.3,1842.2,2.2314]
[1743323278787,2.49872,1842.3,1842.2,2.2314]
[1743323280292,2.49872,1842.3,1842.2,6.74236]
[1743323280599,2.49872,1842.3,1842.2,5.6564]
[1743323295207,2.49872,1842.3,1842.2,6.74236]
[1743323299206,1.4128,1842.3,1842.2,6.74236]
[1743323301402,2.4987,1842.3,1842.2,6.74236]
[1743323306615,2.4987,1842.3,1842.2,5.6564]
[1743323307113,2.4987,1842.3,1842.2,6.74236]
[1743323308603,2.4987,1842.3,1842.2,4.1518]
[1743323308807,3.208,1842.3,1842.2,3.425]
[1743323309112,2.1221,1842.3,1841.9,5.3705]
[1743323309305,1.08608,1842.0,1841.9,7.3591]
[1743323309513,1.08606,1842.1,1841.9,8.41209053]
[1743323309708,1.3689,1842.0,1841.9,8.41209053]
[1743323309909,1.3689,1842.0,1841.9,9.78869053]
[1743323313620,1.3689,1842.0,1841.9,8.70256053]
[1743323313917,1.3689,1842.0,1841.9,9.78869053]
[1743323316311,1.3689,1842.0,1841.9,6.58089053]
[1743323316513,1.3689,1842.0,1841.9,9.78869053]
[1743323317015,2.45498,1842.0,1841.9,3.90196053]
[1743323317216,2.45498,1842.0,1841.9,3.2078]
[1743323317415,3.16038,1842.0,1841.9,3.2078]
[1743323320522,1.08617,1841.9,1841.7,6.61755]
[1743323320735,2.50627,1841.9,1841.8,3.2078]
[1743323325525,1.08625,1841.7,1841.6,3.2078]
[1743323325723,1.08631,1841.6,1841.5,0.0081493]
[1743323326024,2.45061,1841.6,1841.5,0.0081493]
[1743323326423,1.08649,1841.3,1841.2,3.9206]
[1743323326726,1.08661,1841.1,1841.0,4.1378]
[1743323326918,1.08661,1841.1,1841.0,3.425]
[1743323327314,2.45091,1841.1,1841.0,3.425]
[1743323328521,1.08667,1841.0,1840.9,5.3143493]
[1743323328731,2.50327,1841.0,1840.9,5.3143493]
[1743323330823,2.50327,1841.0,1840.9,8.7393493]
[1743323337731,1.4166,1841.0,1840.9,8.7393493]
[1743323337927,3.2686393,1841.2,1841.0,1.08665]
[1743323338130,1.08661,1841.1,1841.0,2.2075]
[1743323338323,2.5855393,1841.2,1841.0,3.29417]
[1743323338529,2.5855393,1841.2,1841.1,1.4712]
[1743323339828,0.0081493,1841.2,1841.1,2.55781]
[1743323340936,1.0946993,1841.2,1841.1,2.55781]
[1743323341139,1.4295493,1841.2,1841.1,2.55781]
[1743323345736,0.0081493,1841.2,1841.1,2.55781]
[1743323347326,1.4572493,1841.2,1841.1,2.55781]
[1743323349930,2.5437993,1841.2,1841.1,1.4712]
[1743323350834,1.4572493,1841.2,1841.1,2.55781]
[1743323351335,2.5437993,1841.2,1841.1,2.55781]
[1743323353443,2.5437993,1841.2,1841.1,1.4712]
[1743323354146,2.5437993,1841.2,1841.1,2.55781]
[1743323354543,1.4572493,1841.2,1841.1,2.55781]
[1743323358658,2.5437993,1841.2,1841.1,2.55781]
[1743323358854,2.5437993,1841.2,1841.1,1.4712]
[1743323359352,2.5437993,1841.2,1841.1,2.55781]
[1743323359655,2.5437993,1841.2,1841.1,1.4712]
[1743323360354,1.08667,1841.0,1840.9,4.1739493]
[1743323360548,1.08667,1841.0,1840.9,6.3173493]
[1743323360744,3.27965,1841.1,1840.9,7.4040493]
[1743323360949,1.4934,1841.0,1840.9,7.4040493]
[1743323363454,2.58007,1841.0,1840.9,6.3173493]
[1743323363854,2.58007,1841.0,1840.9,7.4040693]
[1743323364452,1.4934,1841.0,1840.9,7.4040693]
[1743323365458,2.58007,1841.0,1840.9,4.9179493]
[1743323366048,2.58007,1841.0,1840.9,3.4341493]
[1743323367152,2.58007,1841.0,1840.9,0.0081493]
[1743323369858,1.4934,1841.0,1840.9,1.0948693]
[1743323370059,1.4934,1841.0,1840.9,2.4774693]
[1743323374458,2.58007,1841.0,1840.9,2.4774693]
[1743323374765,1.4934,1841.0,1840.9,2.4774693]
[1743323380168,2.58007,1841.0,1840.9,2.4774693]
[1743323380369,2.58007,1841.0,1840.9,3.2059693]
[1743323380574,1.4934,1841.0,1840.9,3.2059693]
[1743323384470,1.0947293,1841.2,1841.0,1.08665]
[1743323384673,1.4948,1841.1,1841.0,3.20085]
[1743323393269,1.4948,1841.1,1841.0,2.1142]
[1743323393470,1.4948,1841.1,1841.0,3.20087]
[1743323396682,2.58141,1841.1,1841.0,2.1142]
[1743323397471,2.58141,1841.1,1841.0,3.20087]
[1743323397472,1.4948,1841.1,1841.0,3.20087]
[1743323398875,2.58141,1841.1,1841.0,2.1142]
[1743323399182,2.58141,1841.1,1841.0,1.80677]
[1743323399382,1.4948,1841.1,1841.0,1.80677]
[1743323399576,1.4948,1841.1,1840.9,4.9817693]
[1743323399880,0.7294,1841.0,1840.9,4.9817693]
[1743323400381,3.18887,1841.0,1840.9,6.6419493]
[1743323400679,3.18887,1841.0,1840.9,3.2159493]
[1743323402083,3.18887,1841.0,1840.9,4.3026693]
[1743323402480,2.1022,1841.0,1840.9,4.9903693]
[1743323402680,3.18887,1841.0,1840.9,4.9903693]
[1743323404293,3.18887,1841.0,1840.9,1.7825693]
[1743323404489,3.18887,1841.0,1840.9,0.6958493]
[1743323405286,1.3728,1841.0,1840.9,1.7825693]
[1743323405482,1.3728,1841.0,1840.9,3.2711693]
[1743323407592,2.45947,1841.0,1840.9,2.1844493]
[1743323408190,2.45947,1841.0,1840.9,0.6958493]
[1743323409082,1.3728,1841.0,1840.9,1.7825693]
[1743323409591,1.3728,1841.0,1840.9,3.1666693]
[1743323409793,0.0081493,1841.2,1841.1,1.08661]
[1743323410094,0.0081493,1841.2,1841.1,4.51261]
[1743323410491,0.0081493,1841.2,1841.1,5.98931]
[1743323420703,0.0081493,1841.2,1841.1,6.70241]
[1743323424515,0.0081493,1841.2,1841.1,9.91021]
[1743323427218,0.0081493,1841.2,1841.1,6.70241]
[1743323427618,0.0081493,1841.2,1841.1,9.91021]
[1743323428319,0.0081493,1841.2,1841.1,6.70241]
[1743323428514,0.0081493,1841.2,1841.1,9.91021]
[1743323431221,0.0081493,1841.2,1841.1,6.70241]
[1743323431422,0.0081493,1841.2,1841.1,9.91021]
[1743323432519,1.4978493,1841.2,1841.1,9.91021]
[1743323433221,1.4978493,1841.2,1841.1,6.70241]
[1743323433520,1.4978493,1841.2,1841.1,9.91021]
[1743323437519,3.2078,1841.6,1841.2,2.71635]
[1743323437719,1.3656,1841.5,1841.4,1.08643]
[1743323437916,1.3656,1841.5,1841.4,4.51143]
[1743323440922,1.3656,1841.5,1841.4,7.71923]
[1743323443338,0.711,1841.8,1841.7,1.08625]
[1743323443527,0.711,1841.8,1841.7,4.51125]
[1743323444036,2.1022,1841.8,1841.7,4.51125]
[1743323445631,3.18839,1841.8,1841.7,3.425]
[1743323445935,3.18839,1841.8,1841.7,4.51125]
[1743323446234,2.1022,1841.8,1841.7,4.51125]
[1743323447538,3.18839,1841.8,1841.7,4.51125]
[1743323448129,2.1022,1841.8,1841.7,4.51125]
[1743323451042,3.18839,1841.8,1841.7,4.51125]
[1743323451229,3.18839,1841.8,1841.7,3.425]
[1743323451942,2.1022,1841.8,1841.7,4.51125]
[1743323456046,3.18839,1841.8,1841.7,4.51125]
[1743323456647,2.1022,1841.8,1841.7,4.51125]
[1743323457346,3.18839,1841.8,1841.7,3.425]
[1743323457546,2.1022,1841.8,1841.7,4.51125]
[1743323457745,3.18839,1841.8,1841.7,4.51125]
[1743323458453,2.1022,1841.8,1841.7,4.51125]
[1743323459053,3.18839,1841.8,1841.7,4.51125]
[1743323459251,2.1022,1841.8,1841.7,4.51125]
[1743323462451,1.3912,1841.8,1841.7,5.96845]
[1743323462652,23.35203587,1842.3,1842.2,1.08596]
[1743323462857,23.35203587,1842.3,1842.2,4.50996]
[1743323463245,19.65418517,1842.3,1842.2,5.24446]
[1743323463450,19.65418517,1842.3,1842.2,12.35574895]
[1743323463952,19.65418517,1842.3,1842.2,13.81294895]
[1743323464155,1.3835,1842.6,1842.5,1.08578]
[1743323464354,1.3835,1842.6,1842.5,7.71758]
[1743323465454,1.3835,1842.6,1842.5,8.46148]
[1743323470968,0.7018,1842.9,1842.8,1.0856]
[1743323472669,2.0801,1842.9,1842.8,1.0856]
[1743323473370,2.0801,1842.9,1842.8,4.5086]
[1743323477870,1.3783,1842.9,1842.8,4.5086]
[1743323478172,1.3783,1842.9,1842.8,6.6628]
[1743323478567,0.7031,1843.2,1843.1,1.08543]
[1743323478767,3.27667748,1843.2,1843.1,1.08543]
[1743323479267,2.19130748,1843.2,1843.1,1.08543]
[1743323479777,2.19130748,1843.2,1843.1,5.22003]
[1743323480770,2.19130748,1843.2,1843.1,5.93813]
[1743323481277,1.5048,1843.2,1843.1,5.93813]
[1743323486079,3.2078,1843.4,1843.3,1.08531]
[1743323486281,4.6724,1843.4,1843.3,1.08531]
[1743323487882,1.08531,1843.3,1843.2,0.0081493]
[1743323488082,3.27061,1843.3,1843.2,3.4301493]
[1743323488381,2.1853,1843.3,1843.2,4.5155193]
[1743323488683,1.4823,1843.3,1843.2,5.9133193]
[1743323496889,1.4823,1843.3,1843.2,6.4565193]
[1743323497186,1.4823,1843.3,1843.2,5.9133193]
[1743323497387,1.4823,1843.3,1843.2,6.4565193]
[1743323497687,1.4823,1843.3,1843.2,5.9133193]
[1743323497885,1.4823,1843.3,1843.2,6.4565193]
[1743323498080,1.4823,1843.3,1843.2,5.9133193]
[1743323498788,1.4823,1843.3,1843.2,6.4565193]
[1743323499088,1.4823,1843.3,1843.2,5.9133193]
[1743323499287,1.4823,1843.3,1843.2,6.4565193]
[1743323499486,1.4823,1843.3,1843.2,5.9133193]
[1743323499688,3.2078,1843.5,1843.2,4.8279493]
[1743323499894,1.3716,1843.4,1843.3,2.51541]
[1743323515797,1.3716,1843.4,1843.3,1.08531]
[1743323516892,1.3716,1843.4,1843.3,2.47351]
[1743323518695,1.3716,1843.4,1843.3,5.68131]
[1743323520295,1.3716,1843.4,1843.2,0.0081493]
[1743323520296,1.08531,1843.3,1843.2,0.0081493]
[1743323520493,1.81671,1843.3,1843.2,3.4291493]
[1743323520895,1.81671,1843.3,1843.2,4.5145193]
[1743323523600,1.81671,1843.3,1843.2,3.4291493]
[1743323524598,1.81671,1843.3,1843.2,4.5145193]
[1743323524897,0.7314,1843.3,1843.2,4.5145193]
[1743323525400,2.1449,1843.3,1843.2,4.5145193]
[1743323526503,1.4135,1843.3,1843.2,4.5145193]
[1743323526693,1.4135,1843.3,1843.2,7.4025193]
[1743323533206,1.4135,1843.3,1843.2,10.6103193]
[1743323536107,1.4135,1843.3,1843.2,11.1535193]
[1743323536301,1.4135,1843.3,1843.2,10.6103193]
[1743323536705,1.4135,1843.3,1843.2,7.1893193]
[1743323537008,1.4135,1843.3,1843.2,9.1159193]
[1743323540605,3.2078,1843.8,1843.2,11.6159193]
[1743323540909,0.7104,1843.9,1843.6,3.2078]
[1743323541208,0.7104,1843.9,1843.7,4.847]
[1743323541404,1.08502,1843.8,1843.7,4.847]
[1743323541610,1.08502,1843.8,1843.7,3.421]
[1743323541804,1.83682,1843.8,1843.7,3.421]
[1743323542109,3.26092,1843.8,1843.7,3.421]
[1743323543206,2.1759,1843.8,1843.7,4.50607]
[1743323543600,1.4241,1843.8,1843.7,4.50607]
[1743323543803,2.50912,1843.8,1843.7,5.24217]
[1743323544412,2.50912,1843.8,1843.7,4.1571]
[1743323544712,2.50912,1843.8,1843.7,3.421]
[1743323544910,3.20512,1843.8,1843.7,3.421]
[1743323547910,2.50912,1843.8,1843.7,3.421]
[1743323549208,1.4241,1843.8,1843.5,0.7361]
[1743323549406,1.08513,1843.6,1843.5,0.7361]
[1743323549607,1.08513,1843.6,1843.5,5.5858]
[1743323550211,2.44201,1843.7,1843.5,6.67097]
[1743323550515,1.08513,1843.6,1843.5,6.67097]
[1743323550716,1.3963,1843.6,1843.5,6.67097]
[1743323551018,2.48143,1843.6,1843.5,5.5858]
[1743323551518,2.48143,1843.6,1843.5,4.1561]
[1743323553217,1.3963,1843.6,1843.5,6.65739]
[1743323553417,2.48143,1843.6,1843.5,5.5722]
[1743323555212,0.7104,1843.9,1843.5,5.5722]
[1743323555512,1.4141,1843.8,1843.7,1.08504]
[1743323555821,1.4141,1843.8,1843.7,2.50024]
[1743323559111,2.49912,1843.8,1843.6,5.03]
[1743323559311,1.4141,1843.8,1843.7,1.08507]
[1743323559513,1.085,1843.9,1843.7,1.08507]
[1743323560315,1.085,1843.9,1843.8,0.711]
[1743323560818,1.085,1843.9,1843.8,4.131]
[1743323561619,1.08494,1844.0,1843.8,5.21599]
[1743323561824,1.08494,1844.0,1843.8,5.4992]
[1743323562128,1.08487,1844.1,1843.9,3.19673]
[1743323562315,1.0849,1844.0,1843.9,3.19673]
[1743323562822,3.9027,1844.2,1844.0,1.0849]
[1743323563119,1.08484,1844.1,1844.0,1.4583]
[1743323564022,1.08484,1844.1,1844.0,2.5432]
[1743323564422,1.08484,1844.1,1844.0,1.4583]
[1743323566225,3.2078,1844.4,1844.0,4.6661]
[1743323566425,1.08474,1844.3,1844.1,5.2501]
[1743323566618,1.08474,1844.3,1844.2,0.7353]
[1743323566920,3.2078,1844.4,1844.2,2.1463]
[1743323567120,1.08472,1844.3,1844.2,3.23108]
[1743323567326,3.2078,1844.4,1844.3,1.08472]
[1743323567523,3.2078,1844.4,1844.3,2.49572]
[1743323568025,4.29246,1844.4,1844.3,1.411]
[1743323568624,1.08472,1844.3,1844.2,0.7434493]
[1743323568830,4.29249,1844.4,1844.2,3.2058293]
[1743323569127,4.29249,1844.4,1844.3,1.08472]
[1743323569323,3.2078,1844.4,1844.3,1.08472]
[1743323569528,3.2078,1844.4,1844.3,2.46232]
[1743323569719,4.29246,1844.4,1844.3,1.3776]
[1743323570024,1.08472,1844.3,1844.2,1.8282093]
[1743323570224,4.2925,1844.4,1844.2,3.2058093]
[1743323570624,4.29249,1844.4,1844.2,3.2058093]
[1743323570926,1.4959,1844.3,1844.2,3.2058093]
[1743323571135,1.4959,1844.3,1844.2,3.2058293]
[1743323571323,2.58062,1844.3,1844.2,2.1210493]
[1743323571628,1.4959,1844.3,1844.2,3.2058293]
[1743323571820,2.58062,1844.3,1844.2,2.1210493]
[1743323573522,2.58062,1844.3,1844.2,0.0081493]
[1743323573726,3.30422,1844.3,1844.2,0.0081493]
[1743323574325,2.58062,1844.3,1844.2,0.0081493]
[1743323574621,1.08461,1844.5,1844.3,1.08472]
[1743323574821,1.4174,1844.5,1844.4,5.96576]
[1743323575029,2.502,1844.5,1844.4,4.8811]
[1743323575533,1.4174,1844.5,1844.4,7.40916]
[1743323578831,2.502,1844.5,1844.4,7.40916]
[1743323579029,2.502,1844.5,1844.4,4.8811]
[1743323579230,2.502,1844.5,1844.4,5.96576]
[1743323579830,1.4174,1844.5,1844.4,5.96576]
[1743323580327,1.08466,1844.4,1844.2,3.2159493]
[1743323580629,1.4136,1844.3,1844.2,6.4255793]
[1743323580935,1.4136,1844.3,1844.2,5.0493793]
[1743323581328,1.4136,1844.3,1844.2,8.4683793]
[1743323583336,3.2078,1845.0,1844.4,2.71166]
[1743323583536,4.6815,1845.0,1844.9,1.08437]
[1743323583835,1.4737,1845.0,1844.9,4.51437]
[1743323584330,1.4737,1845.0,1844.9,5.95207]
[1743323585436,3.2078,1845.3,1844.9,5.95205]
[1743323585732,1.3712,1845.1,1844.9,5.95205]
[1743323585933,1.3712,1845.1,1845.0,1.08431]
[1743323586338,1.3712,1845.1,1844.9,4.8677]
[1743323586828,1.3712,1845.1,1844.9,5.95202]
[1743323587033,2.45546,1845.1,1844.9,5.95202]
[1743323587332,2.45546,1845.1,1844.9,5.95204]
[1743323587533,1.4814,1845.0,1844.9,5.95204]
[1743323588533,1.4814,1845.0,1844.9,4.8677]
[1743323588728,2.56571,1845.0,1844.9,4.8677]
[1743323588925,2.56571,1845.0,1844.7,1.08445]
[1743323589235,2.56579,1844.9,1844.8,3.434]
[1743323589935,2.56577,1844.9,1844.8,3.434]
[1743323590140,1.4814,1844.9,1844.8,3.434]
[1743323590333,1.4814,1844.9,1844.8,4.51843]
[1743323590542,1.4814,1844.9,1844.8,7.72623]
[1743323591242,1.4814,1844.9,1844.8,4.51843]
[1743323591837,1.4814,1844.9,1844.8,7.72623]
[1743323593244,0.7292,1845.2,1845.0,1.08426]
[1743323593436,1.3856,1845.1,1845.0,1.08426]
[1743323593936,1.3856,1845.1,1845.0,1.81816]
[1743323599036,1.3856,1845.1,1845.0,1.08426]
[1743323599242,1.3856,1845.1,1845.0,4.51831]
[1743323602754,1.3856,1845.1,1845.0,5.95361]
[1743323603052,1.3856,1845.1,1845.0,4.51831]
[1743323604152,2.46985,1845.1,1845.0,3.434]
[1743323604351,2.46985,1845.1,1845.0,4.51831]
[1743323605046,2.46985,1845.1,1845.0,3.434]
[1743323606653,1.08431,1845.0,1844.8,5.2618]
[1743323606851,3.15001,1845.0,1844.9,3.431]
[1743323607544,3.15001,1845.0,1844.9,4.51537]
[1743323607852,1.371,1845.0,1844.9,4.51537]
[1743323608048,2.45531,1845.0,1844.9,4.51537]
[1743323608452,2.45531,1845.0,1844.9,3.431]
[1743323610048,1.371,1845.0,1844.9,4.51537]
[1743323610249,1.371,1845.0,1844.9,5.91727]
[1743323611856,2.45531,1845.0,1844.9,5.91727]
[1743323612151,3.2078,1845.3,1844.9,4.8329]
[1743323612357,2.44727,1845.1,1845.0,2.112]
[1743323612957,2.44727,1845.1,1845.0,3.19631]
[1743323613158,1.363,1845.1,1845.0,3.19631]
[1743323614861,2.44725,1845.1,1845.0,2.112]
[1743323615860,2.44725,1845.1,1845.0,3.19631]
[1743323616159,1.08431,1845.0,1844.9,3.431]
[1743323616356,1.3576,1845.0,1844.9,6.63256]
[1743323616552,2.44191,1845.0,1844.9,4.1277]
[1743323617058,2.44191,1845.0,1844.9,3.431]
[1743323621665,1.08437,1844.9,1844.8,4.5985]
[1743323621861,1.4375,1844.9,1844.8,8.42193]
[1743323623265,1.08427,1845.1,1844.9,1.08433]
[1743323623563,1.08427,1845.1,1845.0,2.2161]
[1743323629470,3.2078,1845.3,1845.0,3.30039]
[1743323629669,1.08421,1845.2,1845.1,2.1833]
[1743323632263,1.08431,1845.0,1844.8,3.2078]
[1743323632464,1.08429,1845.1,1844.9,4.1177]
[1743323632664,1.08429,1845.1,1844.9,5.20203]
[1743323632971,1.08429,1845.1,1844.6,1.08452]
[1743323632972,5.91847,1845.1,1844.6,1.08452]
[1743323633166,1.08449,1844.7,1844.6,0.6837]
[1743323633464,1.08449,1844.7,1844.6,4.1237]
[1743323637365,8.0501,1845.0,1844.3,3.2078]